[Event "Titled Tuesday Blitz January 10 Late 2023"]
[White "Stavri, Gligor"]
[Black "Forgacs, Attila Jr."]
[WhiteFideId "4706013"]
[BlackFideId "773654"]
[WhiteElo "1867"]
[BlackElo "2264"]
[Result "1-0"]
[Round "04"]
[TimeControl "180+2"]
[Date "2023.01.10"]
[WhiteClock "0:00:10"]
[BlackClock "0:00:11"]

1. d4 {[%clk 0:00:00]}  Nf6 {[%clk 0:00:00]} 2. c4 {[%clk 0:03:00]}  g6 {[%clk 0:02:59]} 3. Nc3 {[%clk 0:02:59]}  Bg7 {[%clk 0:03:00]} 4. e4 {[%clk 0:02:56]}  d6 {[%clk 0:03:00]} 5. Nf3 {[%clk 0:02:52]}  O-O {[%clk 0:03:01]} 6. Be2 {[%clk 0:02:44]}  Nbd7 {[%clk 0:03:01]} 7. O-O {[%clk 0:02:44]}  e5 {[%clk 0:03:01]} 8. Re1 {[%clk 0:02:43]}  c6 {[%clk 0:03:01]} 9. Bf1 {[%clk 0:02:43]}  Ne8 {[%clk 0:03:00]} 10. Rb1 {[%clk 0:02:44]}  f5 {[%clk 0:02:59]} 11. dxe5 {[%clk 0:02:17]}  dxe5 {[%clk 0:02:57]} 12. exf5 {[%clk 0:02:16]}  gxf5 {[%clk 0:02:56]} 13. c5 {[%clk 0:02:16]}  e4 {[%clk 0:02:56]} 14. Ng5 {[%clk 0:02:12]}  Qe7 {[%clk 0:02:56]} 15. Bc4+ {[%clk 0:02:04]}  Kh8 {[%clk 0:02:33]} 16. Qh5 {[%clk 0:02:03]}  Bxc3 {[%clk 0:02:33]} 17. bxc3 {[%clk 0:01:31]}  Ne5 {[%clk 0:02:14]} 18. Bb3 {[%clk 0:01:17]}  Nf6 {[%clk 0:02:14]} 19. Qh4 {[%clk 0:00:46]}  a5 {[%clk 0:02:14]} 20. Bf4 {[%clk 0:00:46]}  Ng6 {[%clk 0:02:08]} 21. Bd6 {[%clk 0:00:40]}  Qxd6 {[%clk 0:02:05]} 22. cxd6 {[%clk 0:00:16]}  Nxh4 {[%clk 0:01:51]} 23. Ne6 {[%clk 0:00:17]}  Bxe6 {[%clk 0:01:51]} 24. Bxe6 {[%clk 0:00:14]}  Rad8 {[%clk 0:01:48]} 25. Red1 {[%clk 0:00:15]}  b5 {[%clk 0:01:41]} 26. a4 {[%clk 0:00:13]}  bxa4 {[%clk 0:01:37]} 27. Rb6 {[%clk 0:00:12]}  Rfe8 {[%clk 0:01:33]} 28. Bf7 {[%clk 0:00:10]}  Re5 {[%clk 0:01:10]} 29. Rxc6 {[%clk 0:00:09]}  a3 {[%clk 0:01:08]} 30. Ba2 {[%clk 0:00:09]}  f4 {[%clk 0:01:01]} 31. Rc7 {[%clk 0:00:07]}  Nf5 {[%clk 0:00:58]} 32. d7 {[%clk 0:00:04]}  Re7 {[%clk 0:00:54]} 33. Rc8 {[%clk 0:00:03]}  Rxd7 {[%clk 0:00:43]} 34. Rxd8+ {[%clk 0:00:01]}  Rxd8 {[%clk 0:00:23]} 35. Rxd8+ {[%clk 0:00:01]}  Kg7 {[%clk 0:00:23]} 36. Ra8 {[%clk 0:00:02]}  e3 {[%clk 0:00:24]} 37. fxe3 {[%clk 0:00:03]}  Nxe3 {[%clk 0:00:25]} 38. Kf2 {[%clk 0:00:02]}  Nd1+ {[%clk 0:00:26]} 39. Kf3 {[%clk 0:00:02]}  Nxc3 {[%clk 0:00:27]} 40. Bb3 {[%clk 0:00:02]}  a2 {[%clk 0:00:28]} 41. Rxa5 {[%clk 0:00:02]}  a1=Q {[%clk 0:00:29]} 42. Rxa1 {[%clk 0:00:02]}  Ncd5 {[%clk 0:00:12]} 43. Ra7+ {[%clk 0:00:02]}  Kg6 {[%clk 0:00:12]} 44. Bxd5 {[%clk 0:00:03]}  Nxd5 {[%clk 0:00:12]} 45. Ra5 {[%clk 0:00:03]}  Nf6 {[%clk 0:00:12]} 46. Kxf4 {[%clk 0:00:03]}  Nh5+ {[%clk 0:00:09]} 47. Kg4 {[%clk 0:00:03]}  Nf6+ {[%clk 0:00:09]} 48. Kf3 {[%clk 0:00:03]}  h6 {[%clk 0:00:10]} 49. Ra1 {[%clk 0:00:04]}  Kg7 {[%clk 0:00:09]} 50. Rb1 {[%clk 0:00:05]}  Kg6 {[%clk 0:00:10]} 51. Rc1 {[%clk 0:00:06]}  Kg7 {[%clk 0:00:10]} 52. Rb1 {[%clk 0:00:06]}  Kg6 {[%clk 0:00:11]} 53. Ra1 {[%clk 0:00:07]}  Nd5 {[%clk 0:00:12]} 54. Rb1 {[%clk 0:00:08]}  Nc3 {[%clk 0:00:12]} 55. Rc1 {[%clk 0:00:09]}  Nd5 {[%clk 0:00:13]} 56. Rc6+ {[%clk 0:00:09]}  Kg5 {[%clk 0:00:13]} 57. Rd6 {[%clk 0:00:10]}  Nf6 {[%clk 0:00:13]} 58. Ra6 {[%clk 0:00:10]}  Kg6 {[%clk 0:00:14]} 59. Kf4 {[%clk 0:00:10]}  Kg7 {[%clk 0:00:14]} 60. Kf5 {[%clk 0:00:10]}  Nd5 {[%clk 0:00:14]} 61. Ra7+ {[%clk 0:00:10]}  Kf8 {[%clk 0:00:12]} 62. Kg6 {[%clk 0:00:11]}  Nf4+ {[%clk 0:00:12]} 63. Kf6 {[%clk 0:00:11]}  Nxg2 {[%clk 0:00:11]} 64. Ra8# {[%clk 0:00:10]} 1-0


[Site "https://www.chess.com"]

[Event "Titled Tuesday Blitz January 10 Late 2023"]
[White "Kovacevic, Radmila"]
[Black "Gutkin, Ilya"]
[WhiteFideId "933171"]
[BlackFideId "16203470"]
[WhiteElo "2106"]
[BlackElo "2273"]
[Result "0-1"]
[Round "04"]
[TimeControl "180+2"]
[Date "2023.01.10"]
[WhiteClock "0:00:11"]
[BlackClock "0:00:05"]

1. e4 {[%clk 0:00:00]}  c5 {[%clk 0:00:00]} 2. Nf3 {[%clk 0:03:00]}  Nc6 {[%clk 0:02:59]} 3. d4 {[%clk 0:03:00]}  cxd4 {[%clk 0:02:58]} 4. c3 {[%clk 0:03:00]}  d3 {[%clk 0:02:59]} 5. Bxd3 {[%clk 0:03:01]}  g6 {[%clk 0:02:55]} 6. h4 {[%clk 0:03:00]}  d6 {[%clk 0:02:55]} 7. h5 {[%clk 0:02:59]}  Bg7 {[%clk 0:02:53]} 8. Bf4 {[%clk 0:02:59]}  Bg4 {[%clk 0:02:51]} 9. hxg6 {[%clk 0:02:49]}  hxg6 {[%clk 0:02:49]} 10. Rxh8 {[%clk 0:02:45]}  Bxh8 {[%clk 0:02:48]} 11. Qb3 {[%clk 0:02:44]}  Qb6 {[%clk 0:02:49]} 12. Qxb6 {[%clk 0:02:40]}  axb6 {[%clk 0:02:37]} 13. Be3 {[%clk 0:02:34]}  Bxf3 {[%clk 0:02:38]} 14. gxf3 {[%clk 0:02:34]}  Ne5 {[%clk 0:02:28]} 15. Bb5+ {[%clk 0:02:33]}  Kf8 {[%clk 0:02:26]} 16. f4 {[%clk 0:02:31]}  Nc6 {[%clk 0:02:15]} 17. Bxb6 {[%clk 0:02:23]}  Nf6 {[%clk 0:01:39]} 18. f3 {[%clk 0:02:06]}  Nh5 {[%clk 0:01:39]} 19. Be3 {[%clk 0:02:04]}  Bg7 {[%clk 0:01:31]} 20. a4 {[%clk 0:02:01]}  Bh6 {[%clk 0:01:22]} 21. a5 {[%clk 0:01:28]}  Rxa5 {[%clk 0:01:18]} 22. Na3 {[%clk 0:01:28]}  Bxf4 {[%clk 0:01:14]} 23. Bb6 {[%clk 0:01:13]}  Ra8 {[%clk 0:01:08]} 24. Rd1 {[%clk 0:01:10]}  Ne5 {[%clk 0:01:05]} 25. Kf2 {[%clk 0:01:06]}  Bg3+ {[%clk 0:00:49]} 26. Kg2 {[%clk 0:00:56]}  Bh4 {[%clk 0:00:48]} 27. Be3 {[%clk 0:00:56]}  Bf6 {[%clk 0:00:46]} 28. Rh1 {[%clk 0:00:54]}  Nc6 {[%clk 0:00:37]} 29. Nc4 {[%clk 0:00:51]}  Ra2 {[%clk 0:00:26]} 30. Bc1 {[%clk 0:00:40]}  Bxc3 {[%clk 0:00:25]} 31. Kh3 {[%clk 0:00:35]}  Bg7 {[%clk 0:00:20]} 32. f4 {[%clk 0:00:23]}  Nd4 {[%clk 0:00:18]} 33. Na3 {[%clk 0:00:14]}  Nxb5 {[%clk 0:00:17]} 34. Nxb5 {[%clk 0:00:11]}  Ra5 {[%clk 0:00:16]} 35. Nc3 {[%clk 0:00:11]}  Bxc3 {[%clk 0:00:12]} 36. bxc3 {[%clk 0:00:09]}  Rc5 {[%clk 0:00:10]} 37. Bd2 {[%clk 0:00:10]}  Rc4 {[%clk 0:00:10]} 38. Re1 {[%clk 0:00:10]}  Nf6 {[%clk 0:00:10]} 39. e5 {[%clk 0:00:09]}  dxe5 {[%clk 0:00:05]} 40. fxe5 {[%clk 0:00:09]}  Nd5 {[%clk 0:00:05]} 41. Bh6+ {[%clk 0:00:10]}  Ke8 {[%clk 0:00:05]} 42. e6 {[%clk 0:00:10]}  f5 {[%clk 0:00:05]} 43. Rg1 {[%clk 0:00:10]}  Rxc3+ {[%clk 0:00:05]} 44. Kh4 {[%clk 0:00:09]}  Rc4+ {[%clk 0:00:02]} 45. Kg5 {[%clk 0:00:09]}  Rg4+ {[%clk 0:00:01]} 46. Rxg4 {[%clk 0:00:09]}  fxg4 {[%clk 0:00:02]} 47. Kxg4 {[%clk 0:00:09]}  Kd8 {[%clk 0:00:03]} 48. Kg5 {[%clk 0:00:10]}  Kc7 {[%clk 0:00:03]} 49. Kxg6 {[%clk 0:00:10]}  Kd6 {[%clk 0:00:03]} 50. Kf7 {[%clk 0:00:10]}  b5 {[%clk 0:00:04]} 51. Bc1 {[%clk 0:00:11]}  b4 {[%clk 0:00:03]} 52. Bb2 {[%clk 0:00:10]}  b3 {[%clk 0:00:03]} 53. Bc1 {[%clk 0:00:11]}  Kc5 {[%clk 0:00:03]} 54. Ba3+ {[%clk 0:00:11]}  Kc4 {[%clk 0:00:03]} 55. Bxe7 {[%clk 0:00:11]}  b2 {[%clk 0:00:04]} 56. Bf6 {[%clk 0:00:11]}  b1=Q {[%clk 0:00:02]} 57. e7 {[%clk 0:00:10]}  Nxe7 {[%clk 0:00:03]} 58. Bxe7 {[%clk 0:00:10]}  Qf5+ {[%clk 0:00:03]} 59. Bf6 {[%clk 0:00:11]}  Kd5 {[%clk 0:00:03]} 60. Kg7 {[%clk 0:00:11]}  Ke6 {[%clk 0:00:04]} 61. Bd8 {[%clk 0:00:11]}  Qf7+ {[%clk 0:00:04]} 62. Kh6 {[%clk 0:00:11]}  Kf5 {[%clk 0:00:04]} 63. Bg5 {[%clk 0:00:11]}  Qg6# {[%clk 0:00:05]} 0-1


[Site "https://www.chess.com"]

[Event "Titled Tuesday Blitz January 10 Late 2023"]
[White "Gerbelli Neto, Eduardo"]
[Black "Harish, Neeraj"]
[WhiteFideId "2103281"]
[BlackFideId "30958130"]
[WhiteElo "2114"]
[BlackElo "2232"]
[Result "1/2-1/2"]
[Round "04"]
[TimeControl "180+2"]
[Date "2023.01.10"]
[WhiteClock "0:00:12"]
[BlackClock "0:00:06"]

1. e4 {[%clk 0:00:00]}  c5 {[%clk 0:00:00]} 2. Nc3 {[%clk 0:03:00]}  Nc6 {[%clk 0:02:59]} 3. f4 {[%clk 0:03:01]}  g6 {[%clk 0:02:59]} 4. Nf3 {[%clk 0:03:01]}  Bg7 {[%clk 0:02:58]} 5. Bc4 {[%clk 0:03:02]}  e6 {[%clk 0:02:58]} 6. f5 {[%clk 0:03:03]}  gxf5 {[%clk 0:02:57]} 7. d3 {[%clk 0:03:04]}  Nge7 {[%clk 0:02:44]} 8. O-O {[%clk 0:03:03]}  O-O {[%clk 0:02:31]} 9. Qe1 {[%clk 0:03:00]}  d5 {[%clk 0:01:41]} 10. Bb3 {[%clk 0:02:19]}  fxe4 {[%clk 0:01:25]} 11. dxe4 {[%clk 0:02:19]}  d4 {[%clk 0:00:52]} 12. Ne2 {[%clk 0:02:18]}  Ng6 {[%clk 0:00:52]} 13. Nf4 {[%clk 0:02:08]}  b5 {[%clk 0:00:51]} 14. c4 {[%clk 0:01:49]}  dxc3 {[%clk 0:00:18]} 15. bxc3 {[%clk 0:01:35]}  c4 {[%clk 0:00:17]} 16. Bc2 {[%clk 0:01:34]}  Nce5 {[%clk 0:00:17]} 17. Nh5 {[%clk 0:01:33]}  Nd3 {[%clk 0:00:17]} 18. Bxd3 {[%clk 0:01:28]}  Qxd3 {[%clk 0:00:16]} 19. Nxg7 {[%clk 0:01:09]}  Kxg7 {[%clk 0:00:15]} 20. Be3 {[%clk 0:01:09]}  Bb7 {[%clk 0:00:15]} 21. Bd4+ {[%clk 0:00:59]}  f6 {[%clk 0:00:14]} 22. Ng5 {[%clk 0:00:58]}  Rae8 {[%clk 0:00:14]} 23. Rd1 {[%clk 0:00:53]}  Qc2 {[%clk 0:00:14]} 24. Rd2 {[%clk 0:00:46]}  Qa4 {[%clk 0:00:14]} 25. Qf2 {[%clk 0:00:43]}  e5 {[%clk 0:00:13]} 26. Bc5 {[%clk 0:00:28]}  fxg5 {[%clk 0:00:13]} 27. Bxf8+ {[%clk 0:00:28]}  Rxf8 {[%clk 0:00:11]} 28. Qe2 {[%clk 0:00:27]}  Rxf1+ {[%clk 0:00:11]} 29. Kxf1 {[%clk 0:00:26]}  b4 {[%clk 0:00:11]} 30. Qxc4 {[%clk 0:00:26]}  Qc6 {[%clk 0:00:11]} 31. Qxc6 {[%clk 0:00:24]}  Bxc6 {[%clk 0:00:10]} 32. cxb4 {[%clk 0:00:24]}  Bxe4 {[%clk 0:00:10]} 33. Rd7+ {[%clk 0:00:25]}  Kf6 {[%clk 0:00:10]} 34. Rxa7 {[%clk 0:00:25]}  h5 {[%clk 0:00:11]} 35. g3 {[%clk 0:00:25]}  Ne7 {[%clk 0:00:10]} 36. Ra6+ {[%clk 0:00:26]}  Kf5 {[%clk 0:00:10]} 37. Kf2 {[%clk 0:00:25]}  h4 {[%clk 0:00:10]} 38. b5 {[%clk 0:00:23]}  hxg3+ {[%clk 0:00:10]} 39. hxg3 {[%clk 0:00:23]}  Bd5 {[%clk 0:00:09]} 40. a4 {[%clk 0:00:24]}  e4 {[%clk 0:00:09]} 41. Ra7 {[%clk 0:00:24]}  Ke6 {[%clk 0:00:10]} 42. Ke3 {[%clk 0:00:22]}  Nf5+ {[%clk 0:00:08]} 43. Kf2 {[%clk 0:00:22]}  e3+ {[%clk 0:00:09]} 44. Ke2 {[%clk 0:00:22]}  Bc4+ {[%clk 0:00:09]} 45. Kf3 {[%clk 0:00:22]}  Ke5 {[%clk 0:00:09]} 46. g4 {[%clk 0:00:21]}  Nd4+ {[%clk 0:00:09]} 47. Kxe3 {[%clk 0:00:21]}  Nc2+ {[%clk 0:00:09]} 48. Kd2 {[%clk 0:00:21]}  Nd4 {[%clk 0:00:08]} 49. b6 {[%clk 0:00:21]}  Kd6 {[%clk 0:00:08]} 50. Rc7 {[%clk 0:00:21]}  Nc6 {[%clk 0:00:08]} 51. Kc3 {[%clk 0:00:20]}  Be6 {[%clk 0:00:06]} 52. Rg7 {[%clk 0:00:17]}  Bxg4 {[%clk 0:00:06]} 53. Rxg5 {[%clk 0:00:17]}  Bc8 {[%clk 0:00:06]} 54. Rg7 {[%clk 0:00:16]}  Ba6 {[%clk 0:00:07]} 55. b7 {[%clk 0:00:16]}  Nb8 {[%clk 0:00:07]} 56. Kb4 {[%clk 0:00:13]}  Nc6+ {[%clk 0:00:05]} 57. Kc3 {[%clk 0:00:12]}  Nb8 {[%clk 0:00:05]} 58. Kb3 {[%clk 0:00:12]}  Nc6 {[%clk 0:00:05]} 59. Rg6+ {[%clk 0:00:11]}  Kc7 {[%clk 0:00:06]} 60. Rg7+ {[%clk 0:00:11]}  Kb6 {[%clk 0:00:05]} 61. Rg6 {[%clk 0:00:12]}  Bxb7 {[%clk 0:00:05]} 62. Kc3 {[%clk 0:00:10]}  Ka6 {[%clk 0:00:05]} 63. Kb3 {[%clk 0:00:08]}  Ka5 {[%clk 0:00:06]} 64. Ka3 {[%clk 0:00:08]}  Kb6 {[%clk 0:00:06]} 65. Rg7 {[%clk 0:00:09]}  Ka6 {[%clk 0:00:05]} 66. Rg5 {[%clk 0:00:09]}  Kb6 {[%clk 0:00:05]} 67. Rb5+ {[%clk 0:00:10]}  Ka6 {[%clk 0:00:05]} 68. Rb3 {[%clk 0:00:10]}  Ba8 {[%clk 0:00:05]} 69. Rg3 {[%clk 0:00:10]}  Bb7 {[%clk 0:00:04]} 70. Rg6 {[%clk 0:00:10]}  Kb6 {[%clk 0:00:04]} 71. Kb3 {[%clk 0:00:11]}  Ka6 {[%clk 0:00:05]} 72. Rf6 {[%clk 0:00:11]}  Kb6 {[%clk 0:00:05]} 73. Rg6 {[%clk 0:00:12]}  Ka6 {[%clk 0:00:06]} 74. Rf6 {[%clk 0:00:12]}  Kb6 {[%clk 0:00:06]} 75. Rg6 {[%clk 0:00:12]} 1/2-1/2


[Site "https://www.chess.com"]

[Event "Titled Tuesday Blitz January 10 Late 2023"]
[White "Rodriguez Fontecha, Marcos"]
[Black "Pinero Rodriguez, Carlos Jose"]
[WhiteFideId "2256576"]
[BlackFideId "3901726"]
[WhiteElo "2309"]
[BlackElo "2246"]
[Result "1-0"]
[Round "04"]
[TimeControl "180+2"]
[Date "2023.01.10"]
[WhiteClock "0:00:21"]
[BlackClock "0:00:57"]

1. e4 {[%clk 0:00:00]}  c5 {[%clk 0:00:00]} 2. Nc3 {[%clk 0:03:00]}  d6 {[%clk 0:02:59]} 3. g3 {[%clk 0:03:00]}  g6 {[%clk 0:02:58]} 4. Bg2 {[%clk 0:03:00]}  Bg7 {[%clk 0:02:58]} 5. d3 {[%clk 0:03:00]}  Nc6 {[%clk 0:02:58]} 6. Be3 {[%clk 0:03:01]}  Nf6 {[%clk 0:02:59]} 7. h3 {[%clk 0:03:01]}  O-O {[%clk 0:02:58]} 8. Qd2 {[%clk 0:03:02]}  Re8 {[%clk 0:02:54]} 9. Nge2 {[%clk 0:03:02]}  a6 {[%clk 0:02:54]} 10. O-O {[%clk 0:03:01]}  Bd7 {[%clk 0:02:53]} 11. Bh6 {[%clk 0:03:02]}  Bh8 {[%clk 0:02:54]} 12. f4 {[%clk 0:03:02]}  Nd4 {[%clk 0:02:54]} 13. f5 {[%clk 0:03:01]}  Nxe2+ {[%clk 0:02:53]} 14. Nxe2 {[%clk 0:03:00]}  Bc6 {[%clk 0:02:52]} 15. Bg5 {[%clk 0:02:58]}  Bg7 {[%clk 0:02:51]} 16. Qf4 {[%clk 0:02:46]}  Rc8 {[%clk 0:02:49]} 17. Qh4 {[%clk 0:02:29]}  Qb6 {[%clk 0:02:40]} 18. b3 {[%clk 0:02:28]}  Qb4 {[%clk 0:02:34]} 19. Rae1 {[%clk 0:02:06]}  a5 {[%clk 0:02:32]} 20. c3 {[%clk 0:01:57]}  Qb5 {[%clk 0:02:29]} 21. d4 {[%clk 0:01:46]}  a4 {[%clk 0:02:27]} 22. e5 {[%clk 0:01:45]}  Bxg2 {[%clk 0:02:15]} 23. Kxg2 {[%clk 0:01:27]}  Qc6+ {[%clk 0:02:08]} 24. Kh2 {[%clk 0:01:28]}  Ne4 {[%clk 0:02:00]} 25. Bf4 {[%clk 0:01:18]}  d5 {[%clk 0:01:57]} 26. e6 {[%clk 0:00:42]}  fxe6 {[%clk 0:01:49]} 27. fxg6 {[%clk 0:00:39]}  hxg6 {[%clk 0:01:44]} 28. Be5 {[%clk 0:00:39]}  Bxe5 {[%clk 0:01:43]} 29. dxe5 {[%clk 0:00:33]}  Kg7 {[%clk 0:01:18]} 30. Nf4 {[%clk 0:00:34]}  Rh8 {[%clk 0:01:15]} 31. Qxe7+ {[%clk 0:00:33]}  Kh6 {[%clk 0:01:02]} 32. Rxe4 {[%clk 0:00:32]}  dxe4 {[%clk 0:01:03]} 33. Qh4+ {[%clk 0:00:20]}  Kg7 {[%clk 0:01:02]} 34. Qf6+ {[%clk 0:00:21]}  Kg8 {[%clk 0:01:01]} 35. Qxg6+ {[%clk 0:00:21]}  Kf8 {[%clk 0:00:57]} 36. Nd5# {[%clk 0:00:21]} 1-0


[Site "https://www.chess.com"]

[Event "Titled Tuesday Blitz January 10 Late 2023"]
[White "De Souza, Cristiano Gomes"]
[Black "Mikhalsky, Vladimir"]
[WhiteFideId "2151758"]
[BlackFideId "14144352"]
[WhiteElo "2018"]
[BlackElo "2219"]
[Result "1-0"]
[Round "04"]
[TimeControl "180+2"]
[Date "2023.01.10"]
[WhiteClock "0:02:10"]
[BlackClock "0:00:41"]

1. d4 {[%clk 0:00:00]}  Nf6 {[%clk 0:00:00]} 2. c4 {[%clk 0:02:59]}  g6 {[%clk 0:02:57]} 3. Nc3 {[%clk 0:02:59]}  Bg7 {[%clk 0:02:54]} 4. e4 {[%clk 0:02:57]}  O-O {[%clk 0:02:54]} 5. Nf3 {[%clk 0:02:57]}  d6 {[%clk 0:02:55]} 6. Be2 {[%clk 0:02:57]}  e5 {[%clk 0:02:55]} 7. O-O {[%clk 0:02:58]}  Nc6 {[%clk 0:02:55]} 8. d5 {[%clk 0:02:58]}  Ne7 {[%clk 0:02:55]} 9. Ne1 {[%clk 0:02:59]}  Nd7 {[%clk 0:02:55]} 10. Be3 {[%clk 0:02:59]}  f5 {[%clk 0:02:55]} 11. f3 {[%clk 0:02:59]}  f4 {[%clk 0:02:56]} 12. Bf2 {[%clk 0:03:00]}  g5 {[%clk 0:02:56]} 13. Nb5 {[%clk 0:03:00]}  a6 {[%clk 0:02:57]} 14. Na7 {[%clk 0:03:00]}  h5 {[%clk 0:02:55]} 15. Rc1 {[%clk 0:03:01]}  b6 {[%clk 0:02:52]} 16. Nxc8 {[%clk 0:02:59]}  Qxc8 {[%clk 0:02:48]} 17. Nd3 {[%clk 0:02:59]}  a5 {[%clk 0:02:47]} 18. a3 {[%clk 0:03:00]}  a4 {[%clk 0:02:46]} 19. Nb4 {[%clk 0:03:00]}  Nc5 {[%clk 0:02:45]} 20. Na2 {[%clk 0:02:58]}  Nb3 {[%clk 0:02:38]} 21. Rc2 {[%clk 0:02:54]}  Nd4 {[%clk 0:02:27]} 22. Rd2 {[%clk 0:02:54]}  Qd7 {[%clk 0:02:26]} 23. Nc3 {[%clk 0:02:49]}  Kh7 {[%clk 0:02:08]} 24. Bd3 {[%clk 0:02:48]}  g4 {[%clk 0:01:47]} 25. fxg4 {[%clk 0:02:34]}  hxg4 {[%clk 0:01:44]} 26. Bxd4 {[%clk 0:02:32]}  exd4 {[%clk 0:01:44]} 27. e5+ {[%clk 0:02:23]}  Ng6 {[%clk 0:01:44]} 28. e6 {[%clk 0:02:23]}  Qe8 {[%clk 0:01:40]} 29. Nb5 {[%clk 0:02:24]}  f3 {[%clk 0:01:24]} 30. Nxc7 {[%clk 0:02:22]}  Qe7 {[%clk 0:01:01]} 31. Nxa8 {[%clk 0:02:19]}  Rxa8 {[%clk 0:01:01]} 32. gxf3 {[%clk 0:02:18]}  Bh6 {[%clk 0:00:53]} 33. Rg2 {[%clk 0:02:15]}  Be3+ {[%clk 0:00:49]} 34. Kh1 {[%clk 0:02:14]}  Kh6 {[%clk 0:00:46]} 35. Bxg6 {[%clk 0:02:14]}  Kxg6 {[%clk 0:00:43]} 36. Rxg4+ {[%clk 0:02:10]}  Kf6 {[%clk 0:00:41]} 37. Qd3 {[%clk 0:02:10]} 1-0


[Site "https://www.chess.com"]

[Event "Titled Tuesday Blitz January 10 Late 2023"]
[White "Thiel, Thomas"]
[Black "Peatman, Carter"]
[WhiteFideId "4615964"]
[BlackFideId "2096480"]
[WhiteElo "2234"]
[BlackElo "1998"]
[Result "1-0"]
[Round "04"]
[TimeControl "180+2"]
[Date "2023.01.10"]
[WhiteClock "0:00:01"]
[BlackClock "0:00:06"]

1. e4 {[%clk 0:00:00]}  e5 {[%clk 0:00:00]} 2. Nf3 {[%clk 0:03:00]}  Nf6 {[%clk 0:02:59]} 3. Nxe5 {[%clk 0:02:58]}  d6 {[%clk 0:02:58]} 4. Nf3 {[%clk 0:02:56]}  Nxe4 {[%clk 0:02:58]} 5. d4 {[%clk 0:02:55]}  d5 {[%clk 0:02:59]} 6. Bd3 {[%clk 0:02:55]}  Nd6 {[%clk 0:02:58]} 7. O-O {[%clk 0:02:55]}  Be7 {[%clk 0:02:59]} 8. c3 {[%clk 0:02:53]}  O-O {[%clk 0:02:59]} 9. Bf4 {[%clk 0:02:47]}  c6 {[%clk 0:02:59]} 10. Re1 {[%clk 0:02:47]}  Nd7 {[%clk 0:02:55]} 11. Nbd2 {[%clk 0:02:46]}  Re8 {[%clk 0:02:54]} 12. Nf1 {[%clk 0:02:45]}  Nf8 {[%clk 0:02:53]} 13. Ng3 {[%clk 0:02:40]}  Ne6 {[%clk 0:02:53]} 14. Bd2 {[%clk 0:02:38]}  g6 {[%clk 0:02:53]} 15. Ne5 {[%clk 0:02:36]}  Ng7 {[%clk 0:02:52]} 16. Qc2 {[%clk 0:02:31]}  Ngf5 {[%clk 0:02:53]} 17. Nxf5 {[%clk 0:02:28]}  Bxf5 {[%clk 0:02:49]} 18. Bxf5 {[%clk 0:02:16]}  Nxf5 {[%clk 0:02:50]} 19. Re2 {[%clk 0:02:15]}  Nd6 {[%clk 0:02:51]} 20. Rae1 {[%clk 0:02:10]}  Qc7 {[%clk 0:02:47]} 21. Bf4 {[%clk 0:02:08]}  Rad8 {[%clk 0:02:42]} 22. h3 {[%clk 0:02:03]}  Qb6 {[%clk 0:02:32]} 23. Qb3 {[%clk 0:02:02]}  Qa6 {[%clk 0:02:28]} 24. Nxc6 {[%clk 0:02:00]}  Qxc6 {[%clk 0:02:07]} 25. Rxe7 {[%clk 0:00:18]}  Rxe7 {[%clk 0:01:03]} 26. Rxe7 {[%clk 0:00:16]}  b6 {[%clk 0:01:04]} 27. Bxd6 {[%clk 0:00:13]}  Qxd6 {[%clk 0:00:56]} 28. Re5 {[%clk 0:00:10]}  f6 {[%clk 0:00:57]} 29. Re3 {[%clk 0:00:10]}  Kg7 {[%clk 0:00:54]} 30. Qd1 {[%clk 0:00:09]}  Rd7 {[%clk 0:00:52]} 31. Qe2 {[%clk 0:00:08]}  Qf8 {[%clk 0:00:53]} 32. Re6 {[%clk 0:00:08]}  Qd8 {[%clk 0:00:45]} 33. g3 {[%clk 0:00:08]}  Qc7 {[%clk 0:00:45]} 34. Kg2 {[%clk 0:00:06]}  a5 {[%clk 0:00:45]} 35. h4 {[%clk 0:00:06]}  h5 {[%clk 0:00:42]} 36. a3 {[%clk 0:00:06]}  Kf7 {[%clk 0:00:40]} 37. Qe3 {[%clk 0:00:07]}  b5 {[%clk 0:00:37]} 38. Re8 {[%clk 0:00:07]}  Kg7 {[%clk 0:00:31]} 39. Qe6 {[%clk 0:00:07]}  b4 {[%clk 0:00:28]} 40. axb4 {[%clk 0:00:05]}  axb4 {[%clk 0:00:26]} 41. Qg8+ {[%clk 0:00:03]}  Kh6 {[%clk 0:00:26]} 42. Qh8+ {[%clk 0:00:03]}  Rh7 {[%clk 0:00:25]} 43. Qxf6 {[%clk 0:00:03]}  Rg7 {[%clk 0:00:25]} 44. Re6 {[%clk 0:00:03]}  Rh7 {[%clk 0:00:06]} 45. Qg5+ {[%clk 0:00:01]}  Kg7 {[%clk 0:00:07]} 46. Qxg6+ {[%clk 0:00:01]}  Kf8 {[%clk 0:00:06]} 47. Re8# {[%clk 0:00:01]} 1-0


[Site "https://www.chess.com"]

[Event "Titled Tuesday Blitz January 10 Late 2023"]
[White "Dedona, Mark"]
[Black "Jenkins, Drake"]
[WhiteFideId "30920256"]
[BlackFideId "2022397"]
[WhiteElo "1662"]
[BlackElo "2130"]
[Result "1-0"]
[Round "04"]
[TimeControl "180+2"]
[Date "2023.01.10"]
[WhiteClock "0:01:51"]
[BlackClock "0:00:09"]

1. e4 {[%clk 0:00:00]}  c5 {[%clk 0:00:00]} 2. b3 {[%clk 0:03:00]}  Nf6 {[%clk 0:02:59]} 3. e5 {[%clk 0:03:00]}  Nd5 {[%clk 0:02:58]} 4. Nc3 {[%clk 0:03:00]}  Nxc3 {[%clk 0:02:57]} 5. dxc3 {[%clk 0:03:00]}  Nc6 {[%clk 0:02:50]} 6. Qd5 {[%clk 0:03:01]}  e6 {[%clk 0:02:48]} 7. Qe4 {[%clk 0:03:00]}  d6 {[%clk 0:02:47]} 8. f4 {[%clk 0:02:59]}  dxe5 {[%clk 0:02:32]} 9. fxe5 {[%clk 0:02:49]}  Qd5 {[%clk 0:02:22]} 10. Qxd5 {[%clk 0:02:49]}  exd5 {[%clk 0:02:21]} 11. Bb5 {[%clk 0:02:46]}  Bd7 {[%clk 0:02:22]} 12. Bxc6 {[%clk 0:02:46]}  Bxc6 {[%clk 0:02:17]} 13. Nf3 {[%clk 0:02:46]}  d4 {[%clk 0:02:17]} 14. cxd4 {[%clk 0:02:47]}  Bxf3 {[%clk 0:01:59]} 15. gxf3 {[%clk 0:02:41]}  cxd4 {[%clk 0:01:59]} 16. Bg5 {[%clk 0:02:42]}  Bb4+ {[%clk 0:01:59]} 17. Ke2 {[%clk 0:02:20]}  h6 {[%clk 0:01:49]} 18. Bd2 {[%clk 0:02:20]}  Bc5 {[%clk 0:01:47]} 19. Kd3 {[%clk 0:02:19]}  O-O-O {[%clk 0:01:30]} 20. Rhg1 {[%clk 0:02:18]}  g5 {[%clk 0:01:25]} 21. h4 {[%clk 0:02:18]}  gxh4 {[%clk 0:01:16]} 22. Rg7 {[%clk 0:02:09]}  Rde8 {[%clk 0:00:49]} 23. Bf4 {[%clk 0:02:09]}  Rhg8 {[%clk 0:00:38]} 24. Rxf7 {[%clk 0:02:02]}  Ref8 {[%clk 0:00:12]} 25. Rxf8+ {[%clk 0:01:56]}  Rxf8 {[%clk 0:00:12]} 26. Ke4 {[%clk 0:01:55]}  Kd7 {[%clk 0:00:13]} 27. Rh1 {[%clk 0:01:55]}  Be7 {[%clk 0:00:11]} 28. Bxh6 {[%clk 0:01:56]}  Ke6 {[%clk 0:00:10]} 29. Bxf8 {[%clk 0:01:53]}  Bxf8 {[%clk 0:00:09]} 30. Rxh4 {[%clk 0:01:51]} 1-0


[Site "https://www.chess.com"]